[Event "British Championship 2024"]
[Site "Hull"]
[Date "2024.07.31"]
[Round "2.30"]
[White "Pein, Jonathan"]
[Black "Murawski, Jan"]
[Result "1/2-1/2"]
[Annotator "RC"]
[ECO "C47"]
[WhiteElo "2279"]
[BlackElo "2134"]
[PlyCount "74"]
[EventDate "2024.07.31"]
[EventCountry "GBR"]
[SourceTitle "playchess.com"]
[Source "ChessBase"]
[SourceQuality "1"]
[TimeControl "40/5400+30:1800+30"]

1. e4 {[%emt 0:00:04]} e5 {[%emt 0:00:01]} 2. Nf3 {[%emt 0:00:04]} Nc6 {[%emt 0:00:08]} 3. Nc3 {[%emt 0:00:10]} Nf6 {[%emt 0:00:13]} 4. d4 {[%emt 0:00:09]} exd4 {[%emt 0:00:02]} 5. Nxd4 {[%emt 0:00:06]} Bb4 {[%emt 0:00:14]} 6. Nxc6 {[%emt 0:00:11]} bxc6 {[%emt 0:00:02]} 7. Bd3 {[%emt 0:00:09]} d5 {[%emt 0:00:14]} 8. exd5 {[%emt 0:00:03]} O-O {[%emt 0:00:28]} 9. O-O {[%emt 0:00:09]} cxd5 {[%emt 0:00:27]} 10. h3 {[%emt 0:00:23]} h6 {[%emt 0:03:11]} 11. Qf3 {[%emt 0:00:01]} c6 {[%emt 0:00:54]} 12. Bf4 {[%emt 0:00:04]} Bd6 {[%emt 0:02:19]} 13. Rfe1 {[%emt 0:00:19]} Be6 {[%emt 0:02:24]} 14. Ne2 {[%emt 0:02:06]} Bxf4 {[%emt 0:14:12]} 15. Nxf4 {[%emt 0:02:23]} Qd6 {[%emt 0:01:16]} 16. Rad1 {[%emt 0:05:34]} Rfe8 {[%emt 0:06:54]} 17. c4 {[%emt 0:11:33]} d4 {[%emt 0:08:14]} 18. Qg3 {[%emt 0:24:08]} c5 {[%emt 0:10:31]} 19. Nh5 {[%emt 0:27:57]} Qxg3 {[%emt 0:00:34]} 20. Nxf6+ {[%emt 0:00:29]} gxf6 {[%emt 0:00:02]} 21. fxg3 {[%emt 0:00:01]} Rab8 {[%emt 0:17:12]} 22. Rd2 {[%emt 0:02:14]} Bd7 {[%emt 0:01:30]} 23. Rf1 {[%emt 0:05:59]} Kg7 {[%emt 0:02:55]} 24. Rf4 {[%emt 0:02:36]} Re3 {[%emt 0:05:24]} 25. Bf5 {[%emt 0:02:35]} Bxf5 {[%emt 0:06:11]} 26. Rxf5 {[%emt 0:00:01]} Re5 {[%emt 0:00:01]} 27. Rf4 {[%emt 0:03:00]} Rb6 {[%emt 0:04:52]} 28. Kf2 {[%emt 0:01:49]} Rbe6 {[%emt 0:02:51]} 29. b4 {[%emt 0:02:32]} cxb4 {[%emt 0:02:17]} 30. Rfxd4 {[%emt 0:00:19]} Rf5+ {[%emt 0:00:49]} 31. Rf4 {[%emt 0:02:01]} Rc5 {[%emt 0:02:54]} 32. Rd5 {[%emt 0:02:24]} Rxd5 {[%emt 0:01:29]} 33. cxd5 {[%emt 0:00:01]} Ra6 {[%emt 0:00:01]} 34. Rxb4 {[%emt 0:03:56]} Rxa2+ {[%emt 0:00:01]} 35. Kf3 {[%emt 0:01:05]} Rd2 {[%emt 0:01:21]} 36. Ra4 {[%emt 0:01:03]} Rxd5 {[%emt 0:00:09]} 37. Rxa7 {[%emt 0:00:02]} Rd3+ {[%emt 0:00:35]} 1/2-1/2

[Event "British Championship 2024"]
[Site "Hull"]
[Date "2024.07.31"]
[Round "2.31"]
[White "Verma, Shlok"]
[Black "Boswell, Jacob Connor"]
[Result "1/2-1/2"]
[Annotator "RC"]
[ECO "A41"]
[WhiteElo "2102"]
[BlackElo "2274"]
[PlyCount "73"]
[EventDate "2024.07.31"]
[EventCountry "GBR"]
[SourceTitle "playchess.com"]
[Source "ChessBase"]
[SourceQuality "1"]
[TimeControl "40/5400+30:1800+30"]

1. d4 {[%emt 0:00:03]} d6 {[%emt 0:08:49]} 2. c4 {[%emt 0:00:22]} e5 {[%emt 0:00:06]} 3. d5 {[%emt 0:15:00]} g6 {[%emt 0:00:10]} 4. e4 {[%emt 0:00:31]} Nd7 {[%emt 0:00:15]} 5. Nc3 {[%emt 0:00:34]} a5 {[%emt 0:00:07]} 6. Be3 {[%emt 0:01:28]} h5 {[%emt 0:00:10]} 7. Nf3 {[%emt 0:22:43]} Bh6 {[%emt 0:00:42]} 8. Bxh6 {[%emt 0:03:21]} Nxh6 {[%emt 0:00:07]} 9. Bd3 {[%emt 0:00:02]} Nc5 {[%emt 0:04:19]} 10. Bc2 {[%emt 0:00:30]} Bg4 {[%emt 0:08:35]} 11. h3 {[%emt 0:01:44]} Bd7 {[%emt 0:04:42]} 12. Qd2 {[%emt 0:00:43]} f5 {[%emt 0:03:48]} 13. Qg5 {[%emt 0:11:28]} Qxg5 {[%emt 0:06:12]} 14. Nxg5 {[%emt 0:00:02]} Nf7 {[%emt 0:14:06]} 15. Nxf7 {[%emt 0:10:50]} Kxf7 {[%emt 0:00:02]} 16. Ke2 {[%emt 0:00:39]} Kf6 {[%emt 0:05:15]} 17. b3 {[%emt 0:03:36]} fxe4 {[%emt 0:18:03]} 18. Nxe4+ {[%emt 0:00:41]} Nxe4 {[%emt 0:00:11]} 19. Bxe4 {[%emt 0:00:01]} Bf5 {[%emt 0:02:24]} 20. Ke3 {[%emt 0:03:00]} Rhf8 {[%emt 0:04:47]} 21. Bxf5 {[%emt 0:08:19]} gxf5 {[%emt 0:00:38]} 22. g4 {[%emt 0:03:51]} Rg8 {[%emt 0:10:40]} 23. gxf5 {[%emt 0:01:10]} Rg5 {[%emt 0:00:48]} 24. Rag1 {[%emt 0:07:51]} Rag8 {[%emt 0:01:06]} 25. Rxg5 {[%emt 0:00:32]} Rxg5 {[%emt 0:00:02]} 26. Kf3 {[%emt 0:00:17]} Rxf5+ {[%emt 0:01:55]} 27. Ke3 {[%emt 0:00:49]} Rf4 {[%emt 0:02:30]} 28. Rg1 {[%emt 0:00:48]} Rh4 {[%emt 0:00:01]} 29. Rg3 {[%emt 0:00:12]} c6 {[%emt 0:02:01]} 30. dxc6 {[%emt 0:01:50]} bxc6 {[%emt 0:00:01]} 31. Rf3+ {[%emt 0:00:17]} Ke6 {[%emt 0:00:37]} 32. Rg3 {[%emt 0:00:01]} Kf6 {[%emt 0:01:26]} 33. Rf3+ {[%emt 0:00:06]} Ke6 {[%emt 0:00:13]} 34. Rg3 {[%emt 0:00:04]} Kf5 {[%emt 0:01:09]} 35. Rf3+ {[%emt 0:00:17]} Ke6 {[%emt 0:01:18]} 36. Rg3 {[%emt 0:00:08]} Kf5 {[%emt 0:00:38]} 37. Rf3+ {[%emt 0:00:05]} 1/2-1/2

[Event "British Championship 2024"]
[Site "Hull"]
[Date "2024.07.31"]
[Round "2.32"]
[White "Pal, Rohan"]
[Black "Shafi, Declan"]
[Result "1/2-1/2"]
[Annotator "RC"]
[ECO "C28"]
[WhiteElo "2097"]
[BlackElo "2222"]
[PlyCount "89"]
[EventDate "2024.07.31"]
[EventCountry "GBR"]
[SourceTitle "playchess.com"]
[Source "ChessBase"]
[SourceQuality "1"]
[TimeControl "40/5400+30:1800+30"]

1. e4 {[%emt 0:00:03]} e5 {[%emt 0:00:26]} 2. Bc4 {[%emt 0:00:04]} Nf6 {[%emt 0:00:14]} 3. d3 {[%emt 0:00:03]} Nc6 {[%emt 0:00:16]} 4. Nc3 {[%emt 0:00:09]} Na5 {[%emt 0:00:34]} 5. Qf3 {[%emt 0:00:08]} c6 {[%emt 0:05:30]} 6. Nge2 {[%emt 0:04:53]} d6 {[%emt 0:05:36]} 7. h3 {[%emt 0:01:14]} Be7 {[%emt 0:02:53]} 8. a4 {[%emt 0:09:09]} Nxc4 {[%emt 0:00:28]} 9. dxc4 {[%emt 0:00:05]} Be6 {[%emt 0:01:32]} 10. b3 {[%emt 0:00:07]} d5 {[%emt 0:05:36]} 11. cxd5 {[%emt 0:00:43]} cxd5 {[%emt 0:00:10]} 12. exd5 {[%emt 0:03:01]} Nxd5 {[%emt 0:00:43]} 13. O-O {[%emt 0:01:30]} Nxc3 {[%emt 0:02:58]} 14. Nxc3 {[%emt 0:01:04]} O-O {[%emt 0:05:51]} 15. Qxb7 {[%emt 0:22:51]} Bc5 {[%emt 0:01:56]} 16. Rd1 {[%emt 0:23:20]} Qh4 {[%emt 0:04:35]} 17. Qf3 {[%emt 0:03:19]} Bd4 {[%emt 0:04:15]} 18. Bd2 {[%emt 0:05:52]} Rac8 {[%emt 0:03:02]} 19. Rac1 {[%emt 0:04:03]} f5 {[%emt 0:05:17]} 20. Be1 {[%emt 0:05:25]} Qg5 {[%emt 0:07:06]} 21. Nb5 {[%emt 0:04:31]} Bb2 {[%emt 0:02:30]} 22. Rb1 {[%emt 0:00:52]} Rxc2 {[%emt 0:01:09]} 23. Rd6 {[%emt 0:02:04]} e4 {[%emt 0:11:56]} 24. Qd1 {[%emt 0:01:03]} Bxb3 {[%emt 0:03:41]} 25. Nd4 {[%emt 0:00:18]} Bxd4 {[%emt 0:01:26]} 26. Qxd4 {[%emt 0:01:43]} Rc1 {[%emt 0:02:41]} 27. Rxb3 {[%emt 0:00:58]} Rxe1+ {[%emt 0:00:51]} 28. Kh2 {[%emt 0:00:03]} f4 {[%emt 0:10:13]} 29. Qc4+ {[%emt 0:03:16]} Kh8 {[%emt 0:00:12]} 30. Qf7 {[%emt 0:00:08]} Rg8 {[%emt 0:00:53]} 31. Rd7 {[%emt 0:00:06]} h6 {[%emt 0:00:55]} 32. Rb5 {[%emt 0:00:29]} e3 {[%emt 0:04:37]} 33. Rxg5 {[%emt 0:00:34]} exf2 {[%emt 0:00:09]} 34. Qxf4 {[%emt 0:02:20]} f1=Q {[%emt 0:00:49]} 35. Qxf1 {[%emt 0:00:07]} Rxf1 {[%emt 0:00:05]} 36. Ra5 {[%emt 0:00:03]} Ra8 {[%emt 0:00:51]} 37. Raxa7 {[%emt 0:00:09]} Rxa7 {[%emt 0:00:07]} 38. Rxa7 {[%emt 0:00:03]} Rf4 {[%emt 0:00:50]} 39. a5 {[%emt 0:00:03]} Ra4 {[%emt 0:00:17]} 40. Kg3 {[%emt 0:00:13]} Kh7 {[%emt 0:00:12]} 41. a6 {[%emt 0:30:33]} Kg6 {[%emt 0:30:34]} 42. Ra8 {[%emt 0:00:36]} Kg5 {[%emt 0:06:22]} 43. a7 {[%emt 0:01:18]} Ra3+ {[%emt 0:00:05]} 44. Kh2 {[%emt 0:00:04]} h5 {[%emt 0:00:32]} 45. Kg1 {[%emt 0:01:22]} 1/2-1/2

[Event "British Championship 2024"]
[Site "Hull"]
[Date "2024.07.31"]
[Round "2.33"]
[White "Pang, Ethan"]
[Black "Verma, Aditya"]
[Result "1-0"]
[Annotator "RC"]
[ECO "B55"]
[WhiteElo "2164"]
[BlackElo "2118"]
[PlyCount "57"]
[EventDate "2024.07.31"]
[EventCountry "GBR"]
[SourceTitle "playchess.com"]
[Source "ChessBase"]
[SourceQuality "1"]
[TimeControl "40/5400+30:1800+30"]

1. e4 {[%emt 0:10:59]} c5 {[%emt 0:00:03]} 2. Nf3 {[%emt 0:00:26]} d6 {[%emt 0:00:04]} 3. d4 {[%emt 0:00:15]} cxd4 {[%emt 0:00:03]} 4. Nxd4 {[%emt 0:00:14]} Nf6 {[%emt 0:00:05]} 5. f3 {[%emt 0:00:21]} e5 {[%emt 0:00:39]} 6. Nb3 {[%emt 0:00:11]} d5 {[%emt 0:00:44]} 7. Bg5 {[%emt 0:01:04]} Be6 {[%emt 0:11:18]} 8. Bxf6 {[%emt 0:00:22]} gxf6 {[%emt 0:00:02]} 9. exd5 {[%emt 0:00:07]} Qxd5 {[%emt 0:02:52]} 10. Qxd5 {[%emt 0:00:12]} Bxd5 {[%emt 0:00:01]} 11. Nc3 {[%emt 0:00:08]} Bc6 {[%emt 0:05:05]} 12. O-O-O {[%emt 0:00:42]} Bh6+ {[%emt 0:06:33]} 13. Kb1 {[%emt 0:00:19]} O-O {[%emt 0:00:41]} 14. Na5 {[%emt 0:03:43]} Kg7 {[%emt 0:08:55]} 15. Bd3 {[%emt 0:03:19]} Be3 {[%emt 0:08:40]} 16. Be4 {[%emt 0:06:27]} Bd4 {[%emt 0:07:15]} 17. Ne2 {[%emt 0:02:38]} f5 {[%emt 0:08:59]} 18. Bxf5 {[%emt 0:07:38]} Bb6 {[%emt 0:01:27]} 19. Nxc6 {[%emt 0:00:16]} Nxc6 {[%emt 0:00:29]} 20. Ng3 {[%emt 0:00:49]} Rad8 {[%emt 0:03:48]} 21. Be4 {[%emt 0:00:44]} Bc5 {[%emt 0:01:26]} 22. c3 {[%emt 0:01:51]} a5 {[%emt 0:00:40]} 23. Kc2 {[%emt 0:00:37]} Rxd1 {[%emt 0:03:02]} 24. Rxd1 {[%emt 0:00:09]} Rd8 {[%emt 0:00:14]} 25. Nh5+ {[%emt 0:00:46]} Kh6 {[%emt 0:01:02]} 26. Nf6 {[%emt 0:01:01]} Rxd1 {[%emt 0:02:01]} 27. Kxd1 {[%emt 0:00:05]} Kg5 {[%emt 0:01:38]} 28. Nxh7+ {[%emt 0:00:36]} Kf4 {[%emt 0:00:30]} 29. Ke2 {[%emt 0:00:34]} 1-0

[Event "British Championship 2024"]
[Site "Hull"]
[Date "2024.07.31"]
[Round "2.34"]
[White "Rida, Ruqayyah"]
[Black "Ledger, Dave J"]
[Result "1/2-1/2"]
[Annotator "RC"]
[ECO "C55"]
[WhiteElo "1962"]
[BlackElo "2201"]
[PlyCount "202"]
[EventDate "2024.07.31"]
[EventCountry "GBR"]
[SourceTitle "playchess.com"]
[Source "ChessBase"]
[SourceQuality "1"]
[TimeControl "40/5400+30:1800+30"]

1. e4 {[%emt 0:00:03]} e5 {[%emt 0:00:09]} 2. Nf3 {[%emt 0:00:07]} Nc6 {[%emt 0:00:04]} 3. Bc4 {[%emt 0:00:08]} Nf6 {[%emt 0:00:39]} 4. d3 {[%emt 0:00:12]} h6 {[%emt 0:00:07]} 5. c3 {[%emt 0:00:48]} d6 {[%emt 0:00:30]} 6. O-O {[%emt 0:01:27]} g5 {[%emt 0:01:38]} 7. Re1 {[%emt 0:03:06]} Bg7 {[%emt 0:02:50]} 8. a4 {[%emt 0:01:57]} O-O {[%emt 0:04:04]} 9. b4 {[%emt 0:04:31]} Bg4 {[%emt 0:07:56]} 10. Be3 {[%emt 0:09:22]} d5 {[%emt 0:05:02]} 11. exd5 {[%emt 0:01:06]} Nxd5 {[%emt 0:00:05]} 12. Bc5 {[%emt 0:01:44]} Re8 {[%emt 0:06:23]} 13. Qb3 {[%emt 0:53:31]} Bxf3 {[%emt 0:13:51]} 14. gxf3 {[%emt 0:00:03]} Nf4 {[%emt 0:00:10]} 15. Bxf7+ {[%emt 0:03:17]} Kh8 {[%emt 0:00:48]} 16. Bxe8 {[%emt 0:01:57]} Qxe8 {[%emt 0:04:22]} 17. Be3 {[%emt 0:03:27]} Qh5 {[%emt 0:16:31]} 18. Bxf4 {[%emt 0:01:32]} gxf4 {[%emt 0:34:21]} 19. Nd2 {[%emt 0:01:54]} Rd8 {[%emt 0:00:00]} 20. Qc4 {[%emt 0:02:50]} Ne7 {[%emt 0:00:00]} 21. Kh1 {[%emt 0:01:27]} Qh4 {[%emt 0:00:00]} 22. Rg1 {[%emt 0:01:27]} Qxf2 {[%emt 0:00:00]} 23. Qf7 {[%emt 0:00:46]} Rg8 {[%emt 0:00:00]} 24. Rg2 {[%emt 0:00:11]} Qh4 {[%emt 0:00:00]} 25. Ne4 {[%emt 0:01:31]} Qh3 {[%emt 0:00:00]} 26. Qxe7 {[%emt 0:01:01]} Qxg2+ {[%emt 0:00:00]} 27. Kxg2 {[%emt 0:00:17]} Bf6+ {[%emt 0:00:00]} 28. Kf1 {[%emt 0:01:09]} Bxe7 {[%emt 0:00:00]} 29. Re1 {[%emt 0:00:45]} Bh4 {[%emt 0:00:00]} 30. Nf2 {[%emt 0:01:42]} Rg5 {[%emt 0:00:00]} 31. Re4 {[%emt 0:00:57]} Bxf2 {[%emt 0:00:00]} 32. Kxf2 {[%emt 0:00:05]} Rh5 {[%emt 0:00:00]} 33. Kg2 {[%emt 0:00:41]} Rg5+ {[%emt 0:00:00]} 34. Kh3 {[%emt 0:01:02]} Kg7 {[%emt 0:00:00]} 35. d4 {[%emt 0:00:14]} exd4 {[%emt 0:00:00]} 36. Rxd4 {[%emt 0:00:10]} a5 {[%emt 0:02:42]} 37. Rd7+ {[%emt 0:01:09]} Kf6 {[%emt 0:00:11]} 38. Rxc7 {[%emt 0:00:07]} b5 {[%emt 0:00:40]} 39. Rc6+ {[%emt 0:00:33]} Ke7 {[%emt 0:00:18]} 40. axb5 {[%emt 0:00:49]} Rxb5 {[%emt 0:03:27]} 41. bxa5 {[%emt 0:31:13]} Rxa5 {[%emt 0:04:37]} 42. Rxh6 {[%emt 0:00:00]} Rc5 {[%emt 0:00:28]} 43. Rh4 {[%emt 0:00:00]} Rc4 {[%emt 0:01:20]} 44. Kg4 {[%emt 0:00:00]} Kf6 {[%emt 0:00:33]} 45. Rh6+ {[%emt 0:00:00]} Kg7 {[%emt 0:00:27]} 46. Re6 {[%emt 0:00:00]} Rxc3 {[%emt 0:00:14]} 47. Kxf4 {[%emt 0:00:00]} Rc4+ {[%emt 0:00:55]} 48. Re4 {[%emt 0:00:00]} Rc2 {[%emt 0:01:07]} 49. h3 {[%emt 0:00:00]} Rh2 {[%emt 0:01:19]} 50. Kg3 {[%emt 0:00:00]} Rh1 {[%emt 0:00:10]} 51. Kh4 {[%emt 0:00:00]} Kf6 {[%emt 0:01:11]} 52. Rf4+ {[%emt 0:00:00]} Kg6 {[%emt 0:00:33]} 53. Rf8 {[%emt 0:00:00]} Kg7 {[%emt 0:00:22]} 54. Rb8 {[%emt 0:00:00]} Kg6 {[%emt 0:00:17]} 55. Kg4 {[%emt 0:00:00]} Rg1+ {[%emt 0:00:34]} 56. Kf4 {[%emt 0:00:00]} Rh1 {[%emt 0:00:32]} 57. Rg8+ {[%emt 0:00:00]} Kf7 {[%emt 0:00:22]} 58. Rg3 {[%emt 0:00:00]} Kf6 {[%emt 0:00:15]} 59. Kg4 {[%emt 0:00:00]} Ra1 {[%emt 0:00:27]} 60. f4 {[%emt 0:00:00]} Rb1 {[%emt 0:01:20]} 61. h4 {[%emt 0:00:00]} Ra1 {[%emt 0:01:36]} 62. h5 {[%emt 0:00:00]} Rh1 {[%emt 0:01:53]} 63. Rg2 {[%emt 0:00:00]} Rf1 {[%emt 0:00:30]} 64. Rh2 {[%emt 0:00:00]} Rg1+ {[%emt 0:01:11]} 65. Kf3 {[%emt 0:00:00]} Rf1+ {[%emt 0:07:06]} 66. Ke4 {[%emt 0:00:00]} Re1+ {[%emt 0:00:22]} 67. Kd5 {[%emt 0:00:00]} Rd1+ {[%emt 0:00:26]} 68. Kc6 {[%emt 0:00:08]} Rc1+ {[%emt 0:01:32]} 69. Kd7 {[%emt 0:00:22]} Rd1+ {[%emt 0:00:19]} 70. Kc6 {[%emt 0:02:13]} Rc1+ {[%emt 0:00:40]} 71. Kd5 {[%emt 0:00:09]} Rd1+ {[%emt 0:02:38]} 72. Ke4 {[%emt 0:00:22]} Re1+ {[%emt 0:00:08]} 73. Kd3 {[%emt 0:00:18]} Kg7 {[%emt 0:02:03]} 74. h6+ {[%emt 0:00:39]} Kh7 {[%emt 0:00:04]} 75. Kd4 {[%emt 0:00:27]} Ra1 {[%emt 0:00:22]} 76. Ke5 {[%emt 0:00:37]} Ra5+ {[%emt 0:00:04]} 77. Kf6 {[%emt 0:00:44]} Ra6+ {[%emt 0:00:04]} 78. Kg5 {[%emt 0:00:28]} Rg6+ {[%emt 0:01:26]} 79. Kf5 {[%emt 0:00:48]} Ra6 {[%emt 0:00:05]} 80. Rh5 {[%emt 0:01:01]} Ra5+ {[%emt 0:00:56]} 81. Kg4 {[%emt 0:00:09]} Ra6 {[%emt 0:00:05]} 82. Rh1 {[%emt 0:01:38]} Rb6 {[%emt 0:00:39]} 83. f5 {[%emt 0:00:28]} Rxh6 {[%emt 0:00:45]} 84. Rb1 {[%emt 0:00:37]} Ra6 {[%emt 0:00:32]} 85. Rb7+ {[%emt 0:00:23]} Kg8 {[%emt 0:00:08]} 86. Kg5 {[%emt 0:00:10]} Rc6 {[%emt 0:00:08]} 87. Re7 {[%emt 0:01:30]} Kf8 {[%emt 0:00:13]} 88. Rb7 {[%emt 0:00:28]} Ra6 {[%emt 0:00:06]} 89. Rb8+ {[%emt 0:02:32]} Kf7 {[%emt 0:00:07]} 90. Rb7+ {[%emt 0:00:08]} Kf8 {[%emt 0:00:03]} 91. Rd7 {[%emt 0:00:33]} Rb6 {[%emt 0:00:05]} 92. Kf4 {[%emt 0:00:37]} Ra6 {[%emt 0:00:19]} 93. Ke5 {[%emt 0:00:28]} Ra5+ {[%emt 0:00:21]} 94. Kf6 {[%emt 0:00:27]} Ra6+ {[%emt 0:00:04]} 95. Kg5 {[%emt 0:00:15]} Rb6 {[%emt 0:00:03]} 96. Rd5 {[%emt 0:00:33]} Kf7 {[%emt 0:00:39]} 97. Ra5 {[%emt 0:00:32]} Rc6 {[%emt 0:00:04]} 98. f6 {[%emt 0:00:22]} Rc1 {[%emt 0:00:10]} 99. Ra7+ {[%emt 0:00:21]} Kf8 {[%emt 0:00:04]} 100. Ra8+ {[%emt 0:00:52]} Kf7 {[%emt 0:00:05]} 101. Ra7+ {[%emt 0:00:18]} Kf8 {[%emt 0:00:04]} 1/2-1/2

[Event "British Championship 2024"]
[Site "Hull"]
[Date "2024.07.31"]
[Round "2.35"]
[White "Southcott-Moyers, Indy"]
[Black "Arnott, Jonathan W"]
[Result "1-0"]
[Annotator "RC"]
[ECO "A85"]
[WhiteElo "2182"]
[BlackElo "2104"]
[PlyCount "153"]
[EventDate "2024.07.31"]
[EventCountry "GBR"]
[SourceTitle "playchess.com"]
[Source "ChessBase"]
[SourceQuality "1"]
[TimeControl "40/5400+30:1800+30"]

1. d4 {[%emt 0:00:08]} e6 {[%emt 0:00:01]} 2. c4 {[%emt 0:00:15]} f5 {[%emt 0:00:03]} 3. a3 {[%emt 0:00:07]} Nf6 {[%emt 0:00:06]} 4. Nc3 {[%emt 0:01:41]} d5 {[%emt 0:00:05]} 5. Bf4 {[%emt 0:04:34]} Bd6 {[%emt 0:02:06]} 6. e3 {[%emt 0:03:44]} Bxf4 {[%emt 0:01:50]} 7. exf4 {[%emt 0:00:07]} O-O {[%emt 0:00:03]} 8. Nf3 {[%emt 0:02:59]} Ne4 {[%emt 0:05:13]} 9. Be2 {[%emt 0:05:41]} c6 {[%emt 0:00:29]} 10. O-O {[%emt 0:03:32]} Nd7 {[%emt 0:00:31]} 11. Qc2 {[%emt 0:03:01]} Qf6 {[%emt 0:04:35]} 12. Ne5 {[%emt 0:14:48]} Qh6 {[%emt 0:00:57]} 13. Nxd7 {[%emt 0:03:12]} Bxd7 {[%emt 0:00:08]} 14. g3 {[%emt 0:00:07]} Rf6 {[%emt 0:13:17]} 15. f3 {[%emt 0:04:02]} Nd6 {[%emt 0:08:44]} 16. c5 {[%emt 0:01:10]} Nf7 {[%emt 0:01:08]} 17. h4 {[%emt 0:01:26]} g6 {[%emt 0:01:18]} 18. Kf2 {[%emt 0:03:00]} Qg7 {[%emt 0:00:06]} 19. Rh1 {[%emt 0:04:55]} h6 {[%emt 0:01:27]} 20. Qd2 {[%emt 0:03:08]} b6 {[%emt 0:58:23]} 21. b4 {[%emt 0:02:40]} g5 {[%emt 0:00:00]} 22. hxg5 {[%emt 0:03:58]} hxg5 {[%emt 0:00:00]} 23. fxg5 {[%emt 0:01:38]} Nxg5 {[%emt 0:00:00]} 24. Rh5 {[%emt 0:05:03]} Rg6 {[%emt 0:00:00]} 25. Rah1 {[%emt 0:01:30]} bxc5 {[%emt 0:00:00]} 26. bxc5 {[%emt 0:03:44]} Re8 {[%emt 0:00:00]} 27. f4 {[%emt 0:12:31]} Nf7 {[%emt 0:00:00]} 28. R5h3 {[%emt 0:03:38]} Rh6 {[%emt 0:00:00]} 29. Bh5 {[%emt 0:00:36]} Kf8 {[%emt 0:00:00]} 30. Ne2 {[%emt 0:01:31]} Ke7 {[%emt 0:00:00]} 31. Bxf7 {[%emt 0:02:21]} Rxh3 {[%emt 0:00:00]} 32. Rxh3 {[%emt 0:00:04]} Kxf7 {[%emt 0:00:00]} 33. Qa5 {[%emt 0:00:44]} Re7 {[%emt 0:00:00]} 34. Qxa7 {[%emt 0:00:24]} Be8 {[%emt 0:00:00]} 35. Qb8 {[%emt 0:01:04]} Kf8 {[%emt 0:00:00]} 36. Qd6 {[%emt 0:02:29]} Kg8 {[%emt 0:00:00]} 37. Qb8 {[%emt 0:00:27]} Kf8 {[%emt 0:00:00]} 38. Qe5 {[%emt 0:00:27]} Qxe5 {[%emt 0:00:00]} 39. fxe5 {[%emt 0:00:05]} Ra7 {[%emt 0:00:00]} 40. Rh8+ {[%emt 0:02:02]} Ke7 {[%emt 0:00:00]} 41. Rh7+ {[%emt 0:31:53]} Bf7 {[%emt 0:24:25]} 42. Nf4 {[%emt 0:00:00]} Rxa3 {[%emt 0:00:00]} 43. Ng6+ {[%emt 0:00:00]} Ke8 {[%emt 0:00:00]} 44. Nh8 {[%emt 0:00:00]} Ra7 {[%emt 0:00:00]} 45. Kf3 {[%emt 0:00:00]} Kf8 {[%emt 0:00:00]} 46. Nxf7 {[%emt 0:00:00]} Kg8 {[%emt 0:00:00]} 47. Rh6 {[%emt 0:00:00]} Ra3+ {[%emt 0:00:00]} 48. Kf4 {[%emt 0:00:00]} Kxf7 {[%emt 0:00:00]} 49. Rh7+ {[%emt 0:00:00]} Kf8 {[%emt 0:00:00]} 50. g4 {[%emt 0:00:00]} fxg4 {[%emt 0:05:32]} 51. Kxg4 {[%emt 0:00:00]} Ke8 {[%emt 0:04:59]} 52. Kg5 {[%emt 0:00:00]} Rf3 {[%emt 0:00:05]} 53. Rc7 {[%emt 0:00:06]} Rf1 {[%emt 0:00:33]} 54. Rxc6 {[%emt 0:00:38]} Kd7 {[%emt 0:00:12]} 55. Ra6 {[%emt 0:00:24]} Rg1+ {[%emt 0:04:24]} 56. Kf4 {[%emt 0:01:09]} Rf1+ {[%emt 0:00:51]} 57. Ke3 {[%emt 0:00:11]} Re1+ {[%emt 0:00:42]} 58. Kd2 {[%emt 0:00:08]} Re4 {[%emt 0:00:09]} 59. Kd3 {[%emt 0:00:58]} Rg4 {[%emt 0:01:06]} 60. Rd6+ {[%emt 0:02:03]} Ke7 {[%emt 0:00:25]} 61. c6 {[%emt 0:00:47]} Rg1 {[%emt 0:00:32]} 62. Rd7+ {[%emt 0:01:22]} Ke8 {[%emt 0:07:05]} 63. Rh7 {[%emt 0:00:17]} Kd8 {[%emt 0:00:00]} 64. Rh6 {[%emt 0:00:20]} Ke7 {[%emt 0:00:00]} 65. c7 {[%emt 0:00:19]} Kd7 {[%emt 0:00:00]} 66. Rxe6 {[%emt 0:00:18]} Rg3+ {[%emt 0:00:00]} 67. Ke2 {[%emt 0:00:08]} Kxc7 {[%emt 0:00:00]} 68. Rd6 {[%emt 0:00:04]} Rh3 {[%emt 0:00:00]} 69. Rxd5 {[%emt 0:00:14]} Kc6 {[%emt 0:00:00]} 70. Rc5+ {[%emt 0:00:20]} Kd7 {[%emt 0:00:00]} 71. Kd2 {[%emt 0:00:46]} Ke6 {[%emt 0:00:02]} 72. Rc3 {[%emt 0:00:10]} Rh2+ {[%emt 0:00:41]} 73. Kd3 {[%emt 0:00:05]} Kd5 {[%emt 0:00:03]} 74. Rc5+ {[%emt 0:00:05]} Ke6 {[%emt 0:00:02]} 75. Ra5 {[%emt 0:00:20]} Rh1 {[%emt 0:00:12]} 76. Ra6+ {[%emt 0:00:04]} Kd5 {[%emt 0:00:16]} 77. Rd6# {[%emt 0:00:32]} 1-0